Cogmind - Beta 14 @@@ ROGUE MODE // 2025.03.16 @ 20:20:05 Player: Lava Result: Self-destructed Performance ------------- Evolutions (2) 1000 Regions Visited (5) 1000 Robots Destroyed (46) 230 Value Destroyed (1181) 1181 Prototype IDs (23) 460 Alien Tech Used (0) 0 Bonus (300) 300 TOTAL SCORE: 4171 Bonus ------- Aligned with FarCom 300 Cogmind --------- Core Integrity 172/550 Matter 268/300 Energy 100/100 System Corruption 0% Temperature Cool (0) Movement Walking (330) Ox3 Location -8/Materials Parts ------- > --- POWER (1) -------- (None) > --- PROPULSION (4) --- Aluminum Leg > --- UTILITY (2) ------ Large Storage Unit Sensor Array > --- WEAPON (4) ------- Autogun Autogun Assault Cannon > --- INVENTORY (15) --- Structural Scanner Sensor Array Improved Signal Interpreter Terrain Scanner Core Shielding Medium Armor Plating Medium Armor Plating Improved Light Armor Plating Hacking Suite Authchip [Propulsion] Rocket Launcher Peak State ------------ > --- POWER ------------ Light Nuclear Core > --- PROPULSION ------- Aluminum Leg Aluminum Leg Aluminum Leg Carbon-fiber Leg > --- UTILITY ---------- Large Storage Unit Improved Signal Interpreter > --- WEAPON ----------- Light EM Pulse Cannon YOLO Cannon Autogun > --- INVENTORY -------- Structural Scanner Sensor Array Sensor Array Terrain Scanner Core Shielding Medium Armor Plating Medium Armor Plating Improved Light Armor Plating Hacking Suite Authchip [Propulsion] Autogun Rocket Launcher [Rating: 39] Favorites ----------- Power Ion Engine Engine Ion Engine Power Core Light Nuclear Core Propulsion Aluminum Leg Treads Light Treads Leg Aluminum Leg Utility Signal Interpreter Device Sensor Array Storage Large Storage Unit Processor Signal Interpreter Weapon Light Assault Rifle Energy Gun Medium Laser Energy Cannon Light EM Pulse Cannon Ballistic Gun Light Assault Rifle Ballistic Cannon Assault Cannon Build | -11 -10 -10 -10 -9 -8 ------- Run | Yrd Mat Min Exi Min Mat Slots Evolved 4 | . . . . . 4 Power . | . . . . . . Propulsion 2 | . . . . . 2 Utility . | . . . . . . Weapon 2 | . . . . . 2 Parts Attached 28 | 7 6 4 . 1 10 Power 4 | 1 1 1 . . 1 Engine 3 | 1 1 1 . . . Core 1 | . . . . . 1 Reactor . | . . . . . . Propulsion 8 | 2 1 2 . . 3 Treads 3 | 2 1 . . . . Leg 5 | . . 2 . . 3 Wheel . | . . . . . . Hover . | . . . . . . Flight . | . . . . . . Utility 5 | 1 2 . . . 2 Device 1 | . . . . . 1 Storage 2 | 1 1 . . . . Processor 2 | . 1 . . . 1 Hackware . | . . . . . . Protection . | . . . . . . Artifact . | . . . . . . Weapon 11 | 3 2 1 . 1 4 Energy Gun 2 | 2 . . . . . Energy Cannon 3 | . . 1 . 1 1 Ballistic Gun 5 | 1 2 . . . 2 Ballistic Cannon 1 | . . . . . 1 Launcher . | . . . . . . Special Weapon . | . . . . . . Impact Weapon . | . . . . . . Slashing Weapon . | . . . . . . Piercing Weapon . | . . . . . . Special Melee Weapon . | . . . . . . Unidentified Prototypes . | . . . . . . Parts Lost 13 | . 1 3 . . 9 Power 4 | . 1 1 . . 2 Propulsion 5 | . . 1 . . 4 Utility 1 | . . . . . 1 Weapon 3 | . . 1 . . 2 Highest Loss Streak 7 | . 1 2 . . 7 To Critical Strikes . | . . . . . . Average Slot Usage (%) 93 | . 98 97 100 85 72 Engine 12 | . 13 12 14 14 4 Treads 14 | . 28 4 . . . Leg 13 | . . 22 28 28 28 Storage 13 | . 14 14 14 14 9 Processor 12 | . 12 14 14 14 6 Energy Gun 3 | . 7 . . . . Energy Cannon 6 | . . 11 14 14 12 Ballistic Gun 14 | . 20 16 14 . 5 Peak Build Rating 39 | 6 8 10 12 27 39 Average Rating 13 | 4 7 9 11 26 27 On Entrance 10 | . 6 8 10 12 27 Naked Turns . | . . . . . . Heaviest Build 50 | 13 25 30 30 43 50 Greatest Support 45 | 40 40 40 20 20 45 Greatest Overweight (x) 3 | 1 . 1 1 2 3 Average Overweight (x) . | . . . 1 2 1 Largest Inventory Capacity 15 | 8 15 15 15 15 15 Average Capacity 11 | 7 8 15 15 15 15 Most Carried 15 | 8 10 13 15 15 14 Average Carried 10 | 4 7 12 14 13 11 Final Capacity 15 | 8 15 15 15 15 15 Final Carried 15 | 6 10 13 15 14 11 Class Distribution -------------------- 88% | Mutant 8% | Scavenger-Skirmisher Dominant Class ---------------- Mutant | -10/Materials Mutant | -10/Mines Mutant | -10/Exiles Mutant | -9/Mines Scavenger-Skirmisher | -8/Materials Resources | -11 -10 -10 -10 -9 -8 ----------- Run | Yrd Mat Min Exi Min Mat Matter Collected 652 | 188 242 85 . 10 127 Remotely . | . . . . . . Salvage Created 1711 | . 825 287 . 117 482 Parts 98 | . 52 16 . 7 23 Haulers Intercepted 2 | . 1 . . . 1 Recyclers Shooed 1 | . 1 . . . . Parts Field Recycled . | . . . . . . Retrieved Matter . | . . . . . . Parts Self-Destructed . | . . . . . . Prevented . | . . . . . . Kills | -11 -10 -10 -10 -9 -8 ------- Run | Yrd Mat Min Exi Min Mat Combat Hostiles Destroyed 26 | . 11 6 . 2 7 Guns 16 | . 11 4 . . 1 Cannons 5 | . . 2 . . 3 AOE 4 | . . . . 2 2 Classes Destroyed 12 | . 6 . . 1 5 Worker 2 | . . . . . 2 Builder 2 | . . . . . 2 Hauler 2 | . 1 . . . 1 Recycler 4 | . 4 . . . . Carrier 1 | . . . . 1 . Operator 3 | . 3 . . . . Watcher 6 | . 3 . . . 3 Swarmer 5 | . 3 . . 2 . Grunt 17 | . 8 6 . . 3 Brawler 1 | . . . . . 1 Sentry 2 | . . . . . 2 Hunter 1 | . . . . . 1 Best Kill Streak 5 | . 3 2 . 3 5 Combat Bots Only 3 | . 3 2 . 2 3 Max Kills in Single Turn 4 | . 1 1 . 3 4 Gunslinging . | . . . . . . Exploded 2 | . . . . 2 2 Melee . | . . . . . . Uniques/NPCs Destroyed . | . . . . . . Combat | -11 -10 -10 -10 -9 -8 -------- Run | Yrd Mat Min Exi Min Mat Hostile Shots Fired 171 | . 72 49 . . 50 Missed 36 | . 13 13 . . 10 Damage Taken 1795 | . 623 503 . . 669 Core 375 | . 147 101 . . 127 Absorbed by Shields . | . . . . . . Core Remaining (%) 50 | 100 . . . . . Volleys Fired 144 | . 85 35 . 1 23 Largest 2 | . 2 2 . 1 2 Hottest 156 | . 70 76 . 100 156 Shots Fired 270 | . 170 63 . 1 36 Gun 240 | . 170 54 . . 16 Cannon 30 | . . 9 . 1 20 Launcher . | . . . . . . Special . | . . . . . . Kinetic 185 | . 115 54 . . 16 Thermal 63 | . 55 . . 1 7 Explosive . | . . . . . . Electromagnetic 22 | . . 9 . . 13 Robot Hit Streak 11 | . 9 11 . 5 6 Robot Miss Streak 5 | . 5 3 . . 3 Penetration Max . | . . . . . . Secondary Targets 2 | . 2 . . . . Max Gunslinging Chain 1 | . 1 . . . . Shots Hit Robots 158 | . 88 46 . 1 23 Core Hits 75 | . 42 14 . 3 16 Critical Kills 1 | . . 1 . . . Critical Parts Destroyed . | . . . . . . Critical Strikes 3 | . 2 1 . . . Burn 2 | . 2 . . . . Destroy 1 | . . 1 . . . Melee Attacks . | . . . . . . Impact . | . . . . . . Slashing . | . . . . . . Piercing . | . . . . . . Sneak Attacks . | . . . . . . Combat Hostiles . | . . . . . . Follow-up Attacks . | . . . . . . Damage Inflicted 3165 | . 883 478 . 300 1504 Guns 1384 | . 877 314 . . 193 Cannons 929 | . . 161 . 142 626 Explosions 828 | . . . . 143 685 Melee . | . . . . . . Ramming 24 | . 6 3 . 15 . Kinetic 981 | . 474 314 . . 193 Thermal 1756 | . 403 . . 285 1068 Explosive . | . . . . . . Electromagnetic 404 | . . 161 . . 243 Impact . | . . . . . . Slashing . | . . . . . . Piercing . | . . . . . . Highest Corruption . | . . . . . . Average Corruption . | . . . . . . Corruption Purged . | . . . . . . Corruption Blocked . | . . . . . . Overload Shots . | . . . . . . Overflow Damage 214 | . . . . . 214 Projectiles 130 | . . . . . 130 Explosions 84 | . . . . . 84 Melee . | . . . . . . Knockbacks . | . . . . . . Impact . | . . . . . . Kinetic . | . . . . . . Secondary . | . . . . . . Self-Inflicted Damage 78 | . . . . . 78 Shots 1 | . . . . . 1 Rammed 2 | . 2 . . . . Targets Rammed 6 | . 2 2 . 2 . Kicked 4 | . . 2 . 2 . Crushed . | . . . . . . Highest Temperature 277 | . 277 213 . 20 80 Average Temperature 47 | . 50 72 . 10 20 Received Heat Transfer 792 | . 255 330 . . 207 Siege Activations . | . . . . . . Robots Corrupted 1 | . . . . . 1 Combat Hostiles 1 | . . . . . 1 Parts Fried 3 | . . . . . 3 Impact Corruptions . | . . . . . . Robots Melted . | . . . . . . Combat Hostiles . | . . . . . . Parts Melted 5 | . 4 . . . 1 Heat Transferred 2582 | . 1332 . . 160 1090 Parts Sabotaged . | . . . . . . Parts Stolen . | . . . . . . Parts Stripped . | . . . . . . Power Chain Reactions 1 | . . . . . 1 Alert | -11 -10 -10 -10 -9 -8 ------- Run | Yrd Mat Min Exi Min Mat Peak Influence 308 | . 149 90 . 84 308 Initial 4 | . . 4 . . . Average 55 | . 45 53 . 18 138 Maximum Alert Level 1 | . . . . . 1 Low Security (%) 94 | 100 100 100 . 100 61 Level 1 5 | . . . . . 38 Level 2 . | . . . . . . Level 3 . | . . . . . . Level 4 . | . . . . . . Level 5 . | . . . . . . High Security . | . . . . . . Max Security . | . . . . . . Squads Dispatched 5 | . 4 . . . 1 Investigation 1 | . 1 . . . . Extermination . | . . . . . . Reinforcement 4 | . 3 . . . 1 Assault . | . . . . . . Garrison . | . . . . . . Intercept . | . . . . . . Searches Triggered . | . . . . . . Construction Impeded . | . . . . . . Haulers Reinforced . | . . . . . . Active Scanning Responses . | . . . . . . Cargo Convoy Interrupts . | . . . . . . Stealth | -11 -10 -10 -10 -9 -8 --------- Run | Yrd Mat Min Exi Min Mat Distress Signals 2 | . . . . . 2 Communications Jammed . | . . . . . . Distress Signals . | . . . . . . Times Spotted 41 | . 22 8 . . 11 Peak Tracking Total 4 | . 3 2 . . 4 Tactical Retreats 1 | . 1 . . . . Traps | -11 -10 -10 -10 -9 -8 ------- Run | Yrd Mat Min Exi Min Mat Traps Triggered 1 | . 1 . . . . Indirectly . | . . . . . . Trap Hack Attempts . | . . . . . . Triggered . | . . . . . . Disarmed 4 | . 4 . . . . Reprogrammed . | . . . . . . Reused . | . . . . . . Traps Extracted . | . . . . . . Installed . | . . . . . . Triggered . | . . . . . . Machines | -11 -10 -10 -10 -9 -8 ---------- Run | Yrd Mat Min Exi Min Mat Machines Disabled 4 | . . . . . 4 Max in Single Turn 1 | . . . . . 1 Machines Repaired . | . . . . . . Machines Dismantled . | . . . . . . Machines Sabotaged . | . . . . . . Overloaded Fab Kills . | . . . . . . Hacking | -11 -10 -10 -10 -9 -8 --------- Run | Yrd Mat Min Exi Min Mat Machines Accessed 8 | . 5 . 1 . 2 Terminals 7 | . 5 . . . 2 Fabricators . | . . . . . . Repair Stations . | . . . . . . Recycling Units . | . . . . . . Scanalyzers . | . . . . . . Garrison Access . | . . . . . . Total Hacks 11 | . 7 . 1 . 3 Successful 3 | . 2 . 1 . . Failed 8 | . 5 . . . 3 Catastrophic 4 | . 2 . . . 2 Database Lockouts . | . . . . . . Manual 8 | . 4 . 1 . 3 Terminals 10 | . 7 . . . 3 Fabricators . | . . . . . . Repair Stations . | . . . . . . Recycling Units . | . . . . . . Scanalyzers . | . . . . . . Garrison Access . | . . . . . . Terminal Hacks 3 | . 2 . 1 . . Locate Traps 1 | . 1 . . . . Disarm Traps 1 | . 1 . . . . Derelict Proto ID Bank 1 | . . . 1 . . Fabricator Hacks . | . . . . . . Repair Station Hacks . | . . . . . . Recycling Unit Hacks . | . . . . . . Scanalyzer . | . . . . . . Garrison Access Hacks . | . . . . . . Unauthorized Hacks . | . . . . . . Terminals . | . . . . . . Fabricators . | . . . . . . Repair Stations . | . . . . . . Recycling Units . | . . . . . . Scanalyzers . | . . . . . . Garrison Access . | . . . . . . Data Cores Recovered . | . . . . . . Used . | . . . . . . Hacking Detections 6 | . 4 . . . 2 Full Trace Events . | . . . . . . Feedback Events . | . . . . . . Feedback Blocked . | . . . . . . Robot Schematics Acquired . | . . . . . . Robots Built . | . . . . . . Authchips . | . . . . . . Time . | . . . . . . Total Robot Build Rating . | . . . . . . Part Schematics Acquired . | . . . . . . Parts Built . | . . . . . . Authchips . | . . . . . . Time . | . . . . . . Total Part Build Rating . | . . . . . . Parts Repaired . | . . . . . . Time . | . . . . . . Parts Recycled . | . . . . . . Recycled Matter . | . . . . . . Retrieved Matter . | . . . . . . Retrieved Components . | . . . . . . Parts Scanalyzed . | . . . . . . Part Schematics Acquired . | . . . . . . Parts Damaged . | . . . . . . Bothacking | -11 -10 -10 -10 -9 -8 ------------ Run | Yrd Mat Min Exi Min Mat Used RIF Installer . | . . . . . . Robots Hacked . | . . . . . . Non-combat . | . . . . . . Combat . | . . . . . . Robot Hacks Applied . | . . . . . . Relay Couplers Released . | . . . . . . Fabnet Peak Effective % . | . . . . . . Robots Rewired . | . . . . . . Allies Hacked . | . . . . . . Hacks Repelled . | . . . . . . Allies | -11 -10 -10 -10 -9 -8 -------- Run | Yrd Mat Min Exi Min Mat Total Allies . | . . . . . . Largest Group . | . . . . . . Highest-Rated Group . | . . . . . . Highest-Rated Ally . | . . . . . . Total Orders . | . . . . . . Ally Attacks . | . . . . . . Total Damage . | . . . . . . Kills . | . . . . . . Allies Corrupted . | . . . . . . Allies Melted . | . . . . . . Intel | -11 -10 -10 -10 -9 -8 ------- Run | Yrd Mat Min Exi Min Mat Robot Analysis Total . | . . . . . . Derelict Logs Recovered 1 | . . 1 . . . Drone Launches . | . . . . . . Drone Recoveries . | . . . . . . Exploration | -11 -10 -10 -10 -9 -8 ------------- Run | Yrd Mat Min Exi Min Mat Turns Passed 4643 | 85 2243 680 454 577 604 Spaces Moved 2244 | 43 1203 295 239 218 246 Core 3 | 3 . . . . . Treads 1284 | 40 1203 41 . . . Legs 957 | . . 254 239 218 246 Wheels . | . . . . . . Hover . | . . . . . . Flight . | . . . . . . Fastest Speed 50 | 50 160 160 190 260 190 Average Speed 181 | 154 160 186 190 260 208 Slowest Speed 330 | 160 160 240 190 260 330 Overloaded Moves . | . . . . . . Propulsion Burnouts . | . . . . . . Robots Hopped . | . . . . . . Cave-ins Triggered . | . . . . . . Exploration Rate (%) 42 | 4 98 46 47 37 24 Regions Visited 5 Branch Regions 3 Pre-discovered Areas . | . . . . . . Known Exits Taken 4 | . 1 1 1 1 . Unknown Exits Taken 1 | 1 . . . . . Scrap Searched 3 | . . 1 . 2 . Spaces Dug . | . . . . . . Terrain Destroyed 100 | . . . . 16 84 Melee . | . . . . . . Projectile 3 | . . . . . 3 AOE 97 | . . . . 16 81 Terrain Rammed . | . . . . . . Walls Destroyed . | . . . . . . Machines Disabled . | . . . . . . Actions | -11 -10 -10 -10 -9 -8 --------- Run | Yrd Mat Min Exi Min Mat Total 2557 | 61 1377 370 239 224 286 Wait 84 | . 57 27 . . . Move 2239 | 42 1202 294 238 217 246 Hop . | . . . . . . Pick Up 41 | 12 13 7 1 1 7 Fast Attach 3 | . 3 . . . . Attach 19 | 6 . 3 . 1 9 Detach . | . . . . . . Swap 6 | 1 3 1 . . 1 Drop 15 | . 12 1 . 2 . Fire 144 | . 85 35 . 1 23 Melee . | . . . . . . Ram . | . . . . . . Kick 4 | . . 2 . 2 . Crush 2 | . 2 . . . . Escape Stasis . | . . . . . . Rewire . | . . . . . . Trap . | . . . . . . Miscellaneous . | . . . . . . Route ------- -11/Scrapyard -10/Materials (discovered 5 exits: *Mat x3 / *Min / [*Sub]) -10/Mines (discovered 3 exits: *Mat x2 / *Exi) -10/Exiles -9/Mines -8/Materials History --------- Turn | Location | Event 21 | -11/Scrapyard | Discovered new exit (range 15) 86 | -11/Scrapyard | Entered Materials 315 | -10/Materials | Build established: Mutant 529 | -10/Materials | Discovered new exit (range 11) 583 | -10/Materials | Discovered new exit (range 14) 611 | -10/Materials | Identified exit to Materials 1256 | -10/Materials | Discovered exit to Materials (range 10) 1442 | -10/Materials | Core integrity fell below 50% 1960 | -10/Materials | Discovered new exit (range 8) 2245 | -10/Materials | Discovered new exit (range 8) 2326 | -10/Materials | Identified exit to Mines 2329 | -10/Materials | Entered Mines 2336 | -10/Mines | Received a Rocket Launcher from a helpful Derelict 2450 | -10/Mines | Core integrity fell below 20% 2889 | -10/Mines | Discovered exit to Materials (range 6) 3001 | -10/Mines | Deemed a non-threat by the Exiles lab entrance 3001 | -10/Mines | Discovered new exit (range 5) 3007 | -10/Mines | Identified exit to Exiles 3009 | -10/Mines | Entered Exiles 3061 | -10/Exiles | Met 8R-AWN 3087 | -10/Exiles | Met EX-HEX 3141 | -10/Exiles | Met EX-BIN 3165 | -10/Exiles | Aligned with FarCom system 3167 | -10/Exiles | Given EX-Vault access code 3211 | -10/Exiles | Opened EX-Vault 3224 | -10/Exiles | Found YOLO Cannon 3267 | -10/Exiles | Warned to stay clear of 0b10 Research branches 3438 | -10/Exiles | Discovered new exit (range 14) 3461 | -10/Exiles | Identified exit to Mines 3463 | -10/Exiles | Left Exiles lab with YOLO Cannon 3463 | -10/Exiles | Entered Mines 3998 | -9/Mines | Discovered new exit (range 10) 4027 | -9/Mines | Identified exit to Materials 4040 | -9/Mines | Entered Materials 4040 | -8/Materials | Evolved 4 slots: Propulsion x2, Weapon x2 4400 | -8/Materials | Build established: Scavenger-Skirmisher 4494 | -8/Materials | YOLO Cannon suddenly exploded 4495 | -8/Materials | Core integrity fell below 50% 4545 | -8/Materials | Lost 7 parts (1p3n1u2w) 4644 | -8/Materials | Self-destructed Last Messages --------------- Aluminum Leg destroyed. Core damaged (-251). Lgt. Nuclear Core destroyed. Destroyed Lgt. Nuclear Core. Lgt. EM Pulse Cannon destroyed. Critical hit (Burn: +37). Aluminum Leg destroyed. Y-45 Defender destroyed. U-05 Engineer lays Concrete. U-05 Engineer builds a Wall. Acquired Assault Cannon. U-05 Engineer builds a Door. U-05 Engineer builds a Wall. Acquired 57 matter. U-05 Engineer lays Concrete. K-01 Serf collects debris. U-05 Engineer lays Concrete. K-01 Serf collects debris. Acquired Imp. Signal Interpreter. Connecting with Terminal... Map ----- +----------------------------------------------------+ | ?????????????????????????????????????????????????? | | ?????????????????????????????????????????????????? | | ?????????????????????????????????????????????????? | | ?????????????????????????????????????????????????? | | ?????????????????????????????????????????????????? | | ?????????????????????????????????????????????????? | | ?????????????????????????????????????????????????? | | ?????????????????????????????????????????????????? | | ?????????????????????????????????????????????????? | | ?????????????????????????????????????????????????? | | ?????????????????????????????????????????????????? | | ?????????????????????????????????????????????????? | | ?????????????????????????###?????????s???????????? | | ????????????????????????? #????????????????????? | | ????????????????????????? #????????????????????? | | ????????????o???????????? #????????????????????? | | ????????????????????????? ????????????????????? | | ????????????????????????# ??????????????H?????? | | ????????????????????????# #????????????????????? | | ????????????????#???????# #????????????????????? | | ????????????????# ??????# #????????????????????? | | ????????????????# ?????# #????????????????????? | | ?????????????????? ???## ##????????w??????????? | | ??????????#k ######+### #???????????????????? | | ??????????k a T" !#???????????????????? | | ?????????? k @" #???????????????????? | | ?????????? k #???????????????????? | | ?????????????########### #???????????????????? | | ??????????????????????####+#####?????????????????? | | ??????????????????????# #?????????????????? | | ??????????????????????# """ #?????????????????? | | ??????????????????????# """ #?????????????????? | | ??????????##########??# """ #####?????????????? | | ??????????# #??# + #?????????????? | | ??????????# """ #??# """ ### #?????????????? | | ??????????# """ #??# """ #?# #?????????????? | | ?????? ?# """ #??# """ #?# #?????????????? | | ?????# ## #??# #?# ####??????????? | | ?????# ## """ #??############ " ##?????????? | | ?????# ## """ #?????########""""" ##????????? | | ?????# ## """ #?##### " #????????? | | ?????# ## ###"""" #????????? | | ?????# #######/### # " #????????? | | ?????# # " ##????????? | | ?????# / "##?????????? | | ?????# """ """ # [= ! *#??????????? | | ?????# """ """ % " ! =##??????????? | | ?????# """ """ #""""###+########???????????? | | ???# ## ?# ???????????????????? | | ##+### ! T#"" ? ???????????????????? | +----------------------------------------------------+ Best States ------------- Heat Dissipation 31 Energy Generation 14 Energy Capacity 250 Matter Stores 300 Matter Capacity 300 Sight Range 16 Robot Scan Range 14 Terrain Scan Density 10 Evasion (%) 40 Recoil Reduction 2 Authchip Count 1 Item Schematics ----------------- None Robot Schematics ------------------ None Fabricated ------------ Nothing Alien Tech Used ----------------- None Achievements -------------- Preemptive Strike Challenges ------------ None Game ------ Seed RagnarokCoilBox Manual? 0 Play Time 00:25:36 Cumulative 16.9 hours Start 2025.03.16 @ 19:49:51 End 2025.03.16 @ 20:20:05 Sessions 1 Manual Loads 0 Difficulty Rogue Special Mode None Game No. 25 Rogue 25 Adventurer 0 Explorer 0 Win Type - Total 0 Types 0/0/0/0/0/0/0/0/0 Lore% 11 Gallery% 20 Achievement% 20 Wizard Run 0 Options --------- Layout 1 ASCII 0 Keyboard 0 Movement Mouse Keybinds 0 Fullscreen 1 Font 32/SmallcapsGlow Map View 50x40 Zoom Use 0% Tactical HUD 0 Map Filters NONE Filters NONE Steam 1 RUN: 91f08644-b954-4fa2-b258-5ea59fbfdcfc